bitfinex-derivatives/quotes_BNBF0:USTF0_20250101
["timestamp","ask_amount","ask_price","bid_price","bid_amount"]
[1735766433287,0.89066005,707.35,706.64,1.05983165]
[1735766433486,0.89066005,707.34,706.64,1.05983165]
[1735766433685,0.74,707.45,706.64,1.05983165]
[1735766433686,0.89066005,707.33,706.64,1.05983165]
[1735766433893,0.89066005,707.32,706.64,1.05983165]
[1735766434193,0.89066005,707.31,706.64,1.05983165]
[1735766434393,0.89066005,707.3,706.64,1.05983165]
[1735766434692,0.89066005,707.29,706.77,1.05983165]
[1735766434891,0.89066005,707.28,706.77,1.05983165]
[1735766435091,0.89066005,707.27,706.77,1.05983165]
[1735766435292,0.89066005,707.26,706.77,1.05983165]
[1735766435494,0.89066005,707.25,706.77,1.05983165]
[1735766435791,0.89066005,707.24,706.81,1.05983165]
[1735766435994,0.89066005,707.23,706.81,1.05983165]
[1735766436191,0.89066005,707.22,706.81,1.05983165]
[1735766436391,0.74,707.45,706.81,1.05983165]
[1735766436592,0.89120376,707.44,706.81,1.05983165]
[1735766436788,0.89120376,707.43,706.81,1.05983165]
[1735766436991,0.89120376,707.42,706.82,1.05983165]
[1735766437191,0.89120376,707.41,706.82,1.05983165]
[1735766437389,0.89120376,707.4,706.82,1.05983165]
[1735766437594,0.89120376,707.39,706.82,1.05983165]
[1735766437793,0.89120376,707.38,706.82,1.05983165]
[1735766437989,0.74,707.45,706.82,1.05983165]
[1735766437990,0.89120376,707.37,706.82,1.05983165]
[1735766438189,0.89120376,707.36,706.83,1.05983165]
[1735766438389,0.89120376,707.35,706.83,1.05983165]
[1735766438696,0.74,707.45,706.83,1.05983165]
[1735766438697,0.89120376,707.34,706.83,1.05983165]
[1735766438995,0.89120376,707.33,706.83,1.05983165]
[1735766439197,0.89120376,707.33,706.03,2.16382295]
[1735766439198,0.89120376,707.32,706.84,1.05983165]
[1735766439396,0.89120376,707.31,706.84,1.05983165]
[1735766439597,0.8911519,707.3,706.84,1.05983165]
[1735766439797,0.8911519,707.29,706.84,1.05983165]
[1735766439996,0.8911519,707.28,706.84,1.05983165]
[1735766440197,0.89124261,707.27,706.84,1.05983165]
[1735766440498,0.89124261,707.27,706.25,2.16382295]
[1735766440499,0.89124261,707.26,706.83,1.05983165]
[1735766440690,0.89124261,707.25,706.83,1.05983165]
[1735766440895,0.89124261,707.24,706.83,1.05983165]
[1735766441095,0.89124261,707.23,706.83,1.05983165]
[1735766441292,0.89124261,707.22,706.83,1.05983165]
[1735766441492,0.89124261,707.21,706.83,1.05983165]
[1735766441798,0.74,707.45,706.79,1.05983165]
[1735766441999,0.89114172,707.44,706.79,1.05983165]
[1735766442198,0.89114172,707.43,706.79,1.05983165]
[1735766442401,0.89114172,707.42,706.79,1.05983165]
[1735766442699,0.89114172,707.41,706.79,1.05983165]
[1735766442897,0.74,707.45,706.79,1.05983165]
[1735766442898,0.89114172,707.4,706.79,1.05983165]
[1735766443098,0.89114172,707.39,706.79,1.05983165]
[1735766443294,1.47688129,707.41,706.75,1.05983165]
[1735766443295,0.89114172,707.38,706.75,1.05983165]
[1735766443499,0.89114172,707.37,706.75,1.05983165]
[1735766443694,0.89114172,707.36,706.75,1.05983165]
[1735766443998,0.89114172,707.35,706.75,1.05983165]
[1735766444195,0.89114172,707.34,706.75,1.05983165]
[1735766444399,0.89114172,707.33,706.74,1.05983165]
[1735766444594,0.89114172,707.32,706.74,1.05983165]
[1735766444796,0.89114172,707.31,706.74,1.05983165]
[1735766444996,1.47688129,707.41,706.74,1.05983165]
[1735766444997,0.89114172,707.3,706.74,1.05983165]
[1735766445200,0.89114172,707.29,706.74,1.05983165]
[1735766445400,0.89114172,707.28,706.74,1.05983165]
[1735766445599,0.89114172,707.27,706.74,1.05983165]
[1735766445800,0.89114172,707.26,706.74,1.05983165]
[1735766446096,0.89114172,707.25,706.74,1.05983165]
[1735766446292,0.89114172,707.24,706.74,1.05983165]
[1735766446496,0.89114172,707.23,706.74,1.05983165]
[1735766446700,0.89114172,707.22,706.7,1.05983165]
[1735766446901,0.89114172,707.21,706.7,1.05983165]
[1735766447202,0.89114172,707.2,706.7,1.05983165]
[1735766447402,0.89114172,707.19,706.7,1.05983165]
[1735766447600,0.89114172,707.18,706.7,1.05983165]
[1735766447905,1.63214172,707.17,706.71,1.05983165]
[1735766448202,0.89114172,707.16,706.71,1.05983165]
[1735766448398,0.89114172,707.15,706.71,1.05983165]
[1735766448604,0.89114172,707.14,706.71,1.05983165]
[1735766448804,0.89074313,707.13,706.69,1.05983165]
[1735766449002,0.89074313,707.12,706.69,1.05983165]
[1735766449198,0.741,707.17,706.69,1.05983165]
[1735766449601,0.8907195,707.16,706.69,1.05983165]
[1735766449801,0.8907195,707.16,705.99,2.16382295]
[1735766449802,0.8907195,707.15,706.68,1.05983165]
[1735766450008,0.8907195,707.14,706.68,1.05983165]
[1735766450205,0.8907195,707.13,706.68,1.05983165]
[1735766450502,0.8907195,707.12,706.68,1.05983165]
[1735766450703,0.8907195,707.11,706.68,1.05983165]
[1735766450904,0.8907195,707.1,706.68,1.05983165]
[1735766451104,0.8907195,707.09,706.68,1.05983165]
[1735766451299,0.8907195,707.08,706.68,1.05983165]
[1735766451500,0.8907195,707.07,706.68,1.05983165]
[1735766451702,0.741,707.17,706.68,1.05983165]
[1735766452006,0.89060046,707.16,706.67,1.05983165]
[1735766452305,0.89060046,707.15,706.67,1.05983165]
[1735766452506,0.89060046,707.14,706.67,1.05983165]
[1735766452703,0.89060046,707.13,706.67,1.05983165]
[1735766452998,0.89060046,707.13,706.42,1.05983165]
[1735766452999,0.89060046,707.12,706.53,1.05983165]
[1735766453206,0.89060046,707.11,706.53,1.05983165]
[1735766453405,0.89060046,707.1,706.53,1.05983165]
[1735766453606,0.89060046,707.09,706.53,1.05983165]
[1735766453806,0.89060046,707.08,706.53,1.05983165]
[1735766454007,0.89060046,707.07,706.53,1.05983165]
[1735766454201,0.741,707.17,706.56,1.05983165]
[1735766454402,0.89041877,707.16,706.56,1.05983165]
[1735766454602,0.89041877,707.15,706.56,1.05983165]
[1735766454806,0.89041877,707.14,706.56,1.05983165]
[1735766455003,0.89039526,707.13,706.56,1.05983165]
[1735766455207,0.89039526,707.12,706.56,1.05983165]
[1735766455408,0.89039526,707.11,706.56,1.05983165]
[1735766455608,0.89039526,707.1,706.56,1.05983165]
[1735766455806,0.89039526,707.09,706.56,1.05983165]
[1735766456102,0.89039526,707.08,706.56,1.05983165]
[1735766456308,0.89034655,707.07,706.56,1.05983165]
[1735766456502,0.89034655,707.07,705.7,2.16382295]
[1735766456503,0.741,707.17,706.57,1.05983165]
[1735766456705,0.89030075,707.16,706.57,1.05983165]
[1735766456907,0.89030075,707.15,706.57,1.05983165]
[1735766457212,0.741,707.17,706.57,1.05983165]
[1735766457803,0.741,707.17,706.56,1.05983165]
[1735766459208,0.741,707.17,706.71,1.05983165]
[1735766459811,1.47697531,707.56,706.71,1.05983165]
[1735766460006,0.89042541,707.55,706.71,1.05983165]
[1735766460208,0.89042541,707.55,705.81,2.16382295]
[1735766460209,0.89042541,707.54,706.68,1.05983165]
[1735766460509,1.47697531,707.56,706.68,1.05983165]
[1735766460510,0.89042541,707.53,706.68,1.05983165]
[1735766460705,0.89042541,707.52,706.68,1.05983165]
[1735766460911,1.63042541,707.51,706.68,1.05983165]
[1735766461109,0.89042541,707.5,706.68,1.05983165]
[1735766461306,0.89042541,707.49,706.69,1.05983165]
[1735766461508,0.74,707.51,706.69,1.05983165]
[1735766461509,0.89042541,707.48,706.69,1.05983165]
[1735766461710,0.89042541,707.47,706.69,1.05983165]
[1735766461905,0.89042541,707.46,706.69,1.05983165]
[1735766462110,0.89042541,707.45,706.69,1.05983165]
[1735766462308,0.89042541,707.44,706.68,1.05983165]
[1735766462510,0.89042541,707.43,706.68,1.05983165]
[1735766462703,0.89042541,707.42,706.68,1.05983165]
[1735766462908,0.89042541,707.41,706.68,1.05983165]
[1735766463211,0.89042541,707.4,706.68,1.05983165]
[1735766463412,0.89042541,707.39,706.68,1.05983165]
[1735766463713,0.89042541,707.38,706.68,1.05983165]
[1735766463911,0.89042541,707.37,706.68,1.05983165]
[1735766464111,0.89042541,707.36,706.68,1.05983165]
[1735766464315,0.89042541,707.35,706.69,1.05983165]
[1735766464514,0.89042541,707.34,706.69,1.05983165]
[1735766464712,0.89042541,707.33,706.69,1.05983165]
[1735766464913,0.89042541,707.32,706.69,1.05983165]
[1735766465114,0.89042541,707.31,706.69,1.05983165]
[1735766465314,0.89042541,707.3,706.69,1.05983165]
[1735766465515,0.89042541,707.29,706.69,1.05983165]
[1735766465816,0.89051982,707.28,706.69,1.05983165]
[1735766466010,0.89051982,707.27,706.69,1.05983165]
[1735766466214,0.89051982,707.26,706.69,1.05983165]
[1735766466410,0.89051982,707.25,706.69,1.05983165]
[1735766466616,0.89051982,707.24,706.69,1.05983165]
[1735766466817,0.74,707.51,706.68,1.05983165]
[1735766467017,0.89046457,707.5,706.68,1.05983165]
[1735766467217,0.89046457,707.49,706.68,1.05983165]
[1735766467418,0.89046457,707.48,706.68,1.05983165]
[1735766467717,0.89046457,707.47,706.68,1.05983165]
[1735766467914,0.89046457,707.46,706.68,1.05983165]
[1735766468115,0.74,707.51,706.68,1.05983165]
[1735766468315,0.74,707.51,706.75,1.05983165]
[1735766468316,0.89022486,707.5,706.75,1.05983165]
[1735766468516,0.89022486,707.49,706.75,1.05983165]
[1735766468815,0.89022486,707.48,706.75,1.05983165]
[1735766469012,0.89022486,707.47,706.75,1.05983165]
[1735766469215,0.89022486,707.46,706.75,1.05983165]
[1735766469419,0.89022486,707.45,706.74,1.05983165]
[1735766469618,0.89022486,707.44,706.74,1.05983165]
[1735766469818,0.89022486,707.43,706.74,1.05983165]
[1735766470016,0.89022486,707.42,706.74,1.05983165]
[1735766470218,0.89022486,707.41,706.74,1.05983165]
[1735766470520,0.89022486,707.41,705.99,2.16382295]
[1735766470521,0.89022486,707.4,706.78,1.05983165]
[1735766470713,0.89022486,707.39,706.78,1.05983165]
[1735766470918,0.89022486,707.38,706.78,1.05983165]
[1735766471221,0.89022486,707.37,706.78,1.05983165]
[1735766471419,0.89022486,707.36,706.8,1.05983165]
[1735766471716,0.89022486,707.35,706.8,1.05983165]
[1735766471917,0.89022486,707.34,706.8,1.05983165]
[1735766472117,0.89022486,707.33,706.8,1.05983165]
[1735766472319,0.89022486,707.32,706.8,1.05983165]
[1735766472622,0.74,707.51,706.79,1.05983165]
[1735766472921,0.89042649,707.5,706.79,1.05983165]
[1735766473121,0.89042649,707.49,706.79,1.05983165]
[1735766473321,0.89042649,707.48,706.79,1.05983165]
[1735766473617,0.89042649,707.47,706.79,1.05983165]
[1735766473815,0.74,707.51,706.79,1.05983165]
[1735766474020,0.89030546,707.5,706.86,1.05983165]
[1735766474217,0.74,707.51,706.86,1.05983165]
[1735766475225,0.74,707.51,706.89,1.05983165]
[1735766476327,0.74,707.51,706.85,1.05983165]
[1735766477421,0.74,707.51,706.05,0.7322732]
[1735766477422,0.74,707.51,706.94,1.05983165]
[1735766478726,0.74,707.51,706.91,1.05983165]
[1735766480224,0.74,707.51,706.86,1.05983165]
[1735766481226,0.74,707.51,706.84,1.05983165]
[1735766482423,0.74,707.51,706.83,1.05983165]
[1735766483523,0.74,707.51,706.8,1.05983165]
[1735766486029,1.47645312,707.76,706.81,1.05983165]
[1735766486229,0.88763072,707.75,706.81,1.05983165]
[1735766486430,0.88763072,707.74,706.81,1.05983165]
[1735766486629,0.88763072,707.73,706.81,1.05983165]
[1735766486831,0.88763072,707.72,706.81,1.05983165]
[1735766487028,0.88763072,707.71,706.81,1.05983165]
[1735766487232,0.88763072,707.71,706.76,1.05983165]
[1735766487233,0.88763072,707.7,706.76,1.05983165]
[1735766487433,0.88763072,707.69,706.76,1.05983165]
[1735766487628,0.88763072,707.68,706.76,1.05983165]
[1735766487826,0.88763072,707.67,706.76,1.05983165]
[1735766488029,0.88763072,707.66,706.76,1.05983165]
[1735766488231,0.88763072,707.65,706.76,1.05983165]
[1735766488432,0.88763072,707.64,706.81,1.05983165]
[1735766488633,0.88763072,707.63,706.81,1.05983165]
[1735766488925,0.74,707.71,706.81,1.05983165]
[1735766489130,0.88691227,707.7,706.81,1.05983165]
[1735766489332,0.88691227,707.69,706.81,1.05983165]
[1735766489532,0.88691227,707.68,706.79,1.05983165]
[1735766489728,0.88691227,707.67,706.79,1.05983165]
[1735766489927,0.88691227,707.66,706.79,1.05983165]
[1735766490127,0.88691227,707.65,706.79,1.05983165]
[1735766490332,0.88691227,707.64,706.79,1.05983165]
[1735766490526,0.88691227,707.64,706.23,1.27179798]
[1735766490527,0.74,707.71,706.81,1.05983165]
[1735766490832,0.88678227,707.7,706.81,1.05983165]
[1735766491033,0.88678227,707.69,706.81,1.05983165]
[1735766491233,0.74,707.71,706.81,1.05983165]
[1735766491234,0.88678227,707.68,706.81,1.05983165]
[1735766491437,0.88678227,707.67,706.88,1.05983165]
[1735766491632,0.88678227,707.66,706.88,1.05983165]
[1735766491834,0.88678227,707.65,706.88,1.05983165]
[1735766492034,0.88678227,707.64,706.88,1.05983165]
[1735766492334,0.88678227,707.63,706.88,1.05983165]
[1735766492534,0.88678227,707.62,706.87,1.05983165]
[1735766492733,0.88678227,707.61,706.87,1.05983165]
[1735766493028,0.74,707.71,706.87,1.05983165]
[1735766493228,0.88679891,707.7,706.87,1.05983165]
[1735766493434,0.88679891,707.69,706.87,1.05983165]
[1735766493632,0.88679891,707.68,706.91,1.05983165]
[1735766493834,0.88679891,707.67,706.91,1.05983165]
[1735766494135,0.74,707.71,706.91,1.05983165]
[1735766494136,0.88679891,707.66,706.91,1.05983165]
[1735766494336,0.88675008,707.65,706.91,1.05983165]
[1735766494636,0.74,707.71,706.91,1.05983165]
[1735766494832,0.88666025,707.7,706.91,1.05983165]
[1735766495036,0.74,707.71,706.91,1.05983165]
[1735766495037,0.88666025,707.69,706.91,1.05983165]
[1735766495231,0.88666025,707.68,706.91,1.05983165]
[1735766495430,0.88666025,707.67,706.91,1.05983165]
[1735766495630,0.88666025,707.66,706.91,1.05983165]
[1735766495831,0.74,707.71,706.91,1.05983165]
[1735766496030,0.88653647,707.7,706.91,1.05983165]
[1735766496231,0.88653647,707.69,706.91,1.05983165]
[1735766496432,0.88653647,707.68,706.91,1.05983165]
[1735766496635,0.88653647,707.67,706.93,1.05983165]
[1735766496835,0.88653647,707.66,706.93,1.05983165]
[1735766497040,0.74,707.71,706.93,1.05983165]
[1735766497638,0.88648175,707.7,706.93,1.05983165]
[1735766497838,0.74,707.71,706.93,1.05983165]
[1735766498139,0.88639013,707.7,706.93,1.05983165]
[1735766498339,0.88639013,707.69,706.93,1.05983165]
[1735766498537,0.88639013,707.68,706.94,1.05983165]
[1735766498738,0.88639013,707.67,706.94,1.05983165]
[1735766498933,0.74,707.71,706.94,1.05983165]
[1735766498934,0.88639013,707.66,706.94,1.05983165]
[1735766499138,0.74,707.71,706.94,1.05983165]
[1735766499337,0.88629077,707.7,706.94,1.05983165]
[1735766499538,0.74,707.71,706.95,1.05983165]
[1735766499539,0.88629077,707.69,706.95,1.05983165]
[1735766499739,0.88629077,707.68,706.95,1.05983165]
[1735766499941,0.88629077,707.67,706.95,1.05983165]
[1735766500239,0.88629077,707.66,706.95,1.05983165]
[1735766500442,0.88629077,707.65,706.95,1.05983165]
[1735766500640,0.74,707.71,706.95,1.05983165]
[1735766500841,0.88627431,707.7,706.93,1.05983165]
[1735766501035,0.88627431,707.69,706.93,1.05983165]
[1735766501240,0.88627431,707.68,706.93,1.05983165]
[1735766501442,0.88627431,707.67,706.93,1.05983165]
[1735766501643,0.88627431,707.66,706.93,1.05983165]
[1735766501839,0.88627431,707.65,706.93,1.05983165]
[1735766502036,0.74,707.71,707.0,1.05983165]
[1735766502341,0.88630389,707.7,707.0,1.05983165]
[1735766502541,0.88630389,707.69,707.0,1.05983165]
[1735766502751,0.88630389,707.68,707.0,1.05983165]
[1735766502937,0.74,707.71,707.0,1.05983165]
[1735766502938,0.88630389,707.67,707.0,1.05983165]
[1735766503139,0.88630389,707.66,707.0,1.05983165]
[1735766503341,0.88630389,707.65,707.04,1.05983165]
[1735766503641,0.74,707.71,707.04,1.05983165]
[1735766503642,0.88637147,707.64,707.04,1.05983165]
[1735766503842,0.88637147,707.63,707.04,1.05983165]
[1735766504043,0.88637147,707.62,707.04,1.05983165]
[1735766504243,0.74,707.71,707.04,1.05983165]
[1735766504436,0.88642341,707.7,707.04,1.05983165]
[1735766504637,0.88642341,707.69,707.07,1.05983165]
[1735766504840,0.88642341,707.68,707.07,1.05983165]
[1735766505045,0.88642341,707.67,707.07,1.05983165]
[1735766505344,0.88642341,707.66,707.07,1.05983165]
[1735766505544,0.88642341,707.65,707.07,1.05983165]
[1735766505847,0.88642341,707.64,707.08,1.05983165]
[1735766506044,0.88642341,707.63,707.08,1.05983165]
[1735766506240,1.47631219,707.68,707.08,1.05983165]
[1735766506241,0.88642341,707.62,707.08,1.05983165]
[1735766506436,0.88642341,707.61,707.08,1.05983165]
[1735766506640,0.88642341,707.6,707.08,1.05983165]
[1735766506842,0.88642341,707.59,707.13,1.05983165]
[1735766507042,0.88683236,707.58,707.13,1.05983165]
[1735766507246,0.88687837,707.57,707.13,1.05983165]
[1735766507543,1.47631219,707.68,707.13,1.05983165]
[1735766507743,0.88696522,707.67,707.13,1.05983165]
[1735766508044,0.88696522,707.66,707.16,1.05983165]
[1735766508239,0.88696522,707.65,707.16,1.05983165]
[1735766508446,0.88696522,707.64,707.16,1.05983165]
[1735766508647,0.88696522,707.63,707.16,1.05983165]
[1735766508837,1.47631219,707.68,707.16,1.05983165]
[1735766509039,0.88702805,707.67,707.16,1.05983165]
[1735766509344,0.88702805,707.66,707.18,1.05983165]
[1735766509539,1.47631219,707.68,707.18,1.05983165]
[1735766509740,0.88718427,707.67,707.18,1.05983165]
[1735766509943,0.88718427,707.66,707.18,1.05983165]
[1735766510147,0.88718427,707.65,707.18,1.05983165]
[1735766510346,0.88718427,707.64,707.18,1.05983165]
[1735766510544,0.88718427,707.63,707.19,1.05983165]
[1735766510844,1.47631219,707.68,707.19,1.05983165]
[1735766510845,0.88718427,707.62,707.19,1.05983165]
[1735766511041,0.88718427,707.61,707.19,1.05983165]
[1735766511243,0.88718427,707.6,707.19,1.05983165]
[1735766511440,0.88718427,707.59,707.19,1.05983165]
[1735766511646,0.88718427,707.58,707.18,1.05983165]
[1735766511945,1.47631219,707.68,707.18,1.05983165]
[1735766511946,0.88718427,707.57,707.18,1.05983165]
[1735766512147,1.47631219,707.68,707.18,1.05983165]
[1735766512148,0.88718427,707.56,707.18,1.05983165]
[1735766512346,1.47631219,707.68,707.18,1.05983165]
[1735766512541,1.47631219,707.68,707.17,1.05983165]
[1735766512745,0.88763279,707.67,707.17,1.05983165]
[1735766512944,0.88763279,707.66,707.17,1.05983165]
[1735766513144,0.88763279,707.65,707.17,1.05983165]
[1735766513344,0.88763279,707.64,707.17,1.05983165]
[1735766513545,0.88763279,707.63,707.17,1.05983165]
[1735766513741,0.88763279,707.62,707.18,1.05983165]
[1735766513946,0.88763279,707.61,707.18,1.05983165]
[1735766514142,0.88763279,707.6,707.18,1.05983165]
[1735766514346,0.88763279,707.59,707.18,1.05983165]
[1735766514546,0.88763279,707.58,707.18,1.05983165]
[1735766514747,0.88763279,707.57,707.18,1.05983165]
[1735766514947,1.47631219,707.68,707.18,1.05983165]
[1735766514948,0.88763279,707.56,707.18,1.05983165]
[1735766515141,0.88763279,707.55,707.18,1.05983165]
[1735766515346,0.88763279,707.54,707.18,1.05983165]
[1735766515544,0.88763279,707.53,707.18,1.05983165]
[1735766515747,1.47631219,707.68,707.18,1.05983165]
[1735766515948,0.88818514,707.67,707.18,1.05983165]
[1735766516247,0.88818514,707.67,707.0,1.05983165]
[1735766516248,0.88818514,707.66,707.19,1.05983165]
[1735766516442,0.88818514,707.65,707.19,1.05983165]
[1735766516643,0.88818514,707.64,707.19,1.05983165]
[1735766516842,0.88818514,707.63,707.19,1.05983165]
[1735766517047,0.88818514,707.62,707.19,1.05983165]
[1735766517248,0.88818514,707.62,706.66,2.16382295]
[1735766517249,0.88818514,707.61,707.15,1.05983165]
[1735766517445,0.88818514,707.6,707.15,1.05983165]
[1735766517651,0.88818514,707.59,707.15,1.05983165]
[1735766517849,0.74,707.66,707.15,1.05983165]
[1735766518049,1.47642702,707.58,707.15,1.05983165]
[1735766518251,0.88856231,707.57,707.15,1.05983165]
[1735766518545,1.47642702,707.58,707.15,1.05983165]
[1735766518746,1.47642702,707.58,706.61,2.16382295]
[1735766518747,0.88851471,707.57,707.13,1.05983165]
[1735766519046,0.88851471,707.56,707.13,1.05983165]
[1735766519251,0.88851471,707.55,707.13,1.05983165]
[1735766519446,0.88851471,707.54,707.13,1.05983165]
[1735766519649,0.88851471,707.53,707.13,1.05983165]
[1735766519849,0.88851471,707.52,707.02,1.05983165]
[1735766520050,0.88851471,707.51,707.02,1.05983165]
[1735766520349,0.88851471,707.5,707.02,1.05983165]
[1735766520549,0.88851471,707.49,707.02,1.05983165]
[1735766520848,0.88851471,707.48,707.02,1.05983165]
[1735766521049,0.8885337,707.47,707.02,1.05983165]
[1735766521250,0.8885337,707.46,706.99,1.05983165]
[1735766521550,0.8885337,707.45,706.99,1.05983165]
[1735766521750,0.8885337,707.44,706.99,1.05983165]
[1735766521951,0.8885337,707.43,706.99,1.05983165]
[1735766522152,0.8885337,707.42,706.99,1.05983165]
[1735766522346,0.8885337,707.41,707.0,1.05983165]
[1735766522649,1.47642702,707.58,707.0,1.05983165]
[1735766522850,0.88874871,707.57,707.0,1.05983165]
[1735766523151,0.88874871,707.56,707.0,1.05983165]
[1735766523351,0.88874871,707.55,707.01,1.05983165]
[1735766523553,1.47642702,707.58,707.01,1.05983165]
[1735766523853,0.8888364,707.57,707.01,1.05983165]
[1735766524056,0.8888364,707.56,707.01,1.05983165]
[1735766524251,0.8888364,707.55,707.0,1.05983165]
[1735766524450,0.8888364,707.54,707.0,1.05983165]
[1735766524653,0.8888364,707.53,707.0,1.05983165]
[1735766524952,0.8888364,707.52,707.0,1.05983165]
[1735766525148,0.8888364,707.51,707.0,1.05983165]
[1735766525454,0.8888364,707.5,707.0,1.05983165]
[1735766525652,0.8888364,707.49,707.0,1.05983165]
[1735766525949,0.8888364,707.48,707.0,1.05983165]
[1735766526248,0.8888364,707.47,707.0,1.05983165]
[1735766526452,0.8888364,707.46,707.0,1.05983165]
[1735766526650,1.47642702,707.58,706.99,1.05983165]
[1735766526847,0.88918402,707.57,706.99,1.05983165]
[1735766527051,0.88918402,707.56,706.99,1.05983165]
[1735766527250,0.88918402,707.55,706.99,1.05983165]
[1735766527453,0.88918402,707.54,706.99,1.05983165]
[1735766527653,0.88918402,707.53,706.99,1.05983165]
[1735766527855,0.88918402,707.52,706.97,1.05983165]
[1735766528057,0.88918402,707.51,706.97,1.05983165]
[1735766528253,0.88918402,707.5,706.97,1.05983165]
[1735766528449,0.88918402,707.49,706.97,1.05983165]
[1735766528649,0.88918402,707.48,706.97,1.05983165]
[1735766528850,0.88918402,707.47,706.97,1.05983165]
[1735766529049,0.88918402,707.46,706.99,1.05983165]
[1735766529254,0.88918402,707.45,706.99,1.05983165]
[1735766529455,0.88918402,707.44,706.99,1.05983165]
[1735766529654,0.74,707.66,706.99,1.05983165]
[1735766529857,0.88986178,707.65,706.99,1.05983165]
[1735766530051,0.88986178,707.64,706.99,1.05983165]
[1735766530255,0.88986178,707.64,706.33,2.16382295]
[1735766530256,0.88986178,707.63,707.03,1.05983165]
[1735766530455,0.88986178,707.62,707.03,1.05983165]
[1735766530658,0.88986178,707.61,707.03,1.05983165]
[1735766530857,0.88986178,707.6,707.03,1.05983165]
[1735766531052,0.88986178,707.59,707.03,1.05983165]
[1735766531255,0.88986178,707.58,707.03,1.05983165]
[1735766531557,1.62986178,707.57,707.03,1.05983165]
[1735766531752,0.88986178,707.56,707.03,1.05983165]
[1735766531953,0.74,707.57,707.15,1.05983165]
[1735766531954,0.88986178,707.55,707.15,1.05983165]
[1735766532155,0.88986178,707.54,707.15,1.05983165]
[1735766532458,0.88986178,707.53,707.15,1.05983165]
[1735766532657,0.89055603,707.52,707.15,1.05983165]
[1735766532851,0.89056093,707.51,707.15,1.05983165]
[1735766533051,0.74,707.57,707.15,1.05983165]
[1735766533256,0.89055574,707.56,707.09,1.05983165]
[1735766533456,0.89055574,707.55,707.09,1.05983165]
[1735766533654,0.89055574,707.54,707.09,1.05983165]
[1735766533850,0.89055574,707.53,707.09,1.05983165]
[1735766534057,0.89055574,707.52,707.09,1.05983165]
[1735766534253,0.89055574,707.51,707.09,1.05983165]
[1735766534453,0.74,707.57,707.05,1.05983165]
[1735766534751,0.89048046,707.56,707.05,1.05983165]
[1735766534954,0.89048046,707.55,707.05,1.05983165]
[1735766535153,0.89048046,707.54,707.05,1.05983165]
[1735766535354,0.74,707.57,707.05,1.05983165]
[1735766535355,0.89048046,707.53,707.05,1.05983165]
[1735766535556,0.89048046,707.52,707.05,1.05983165]
[1735766535758,0.89052719,707.51,707.05,1.05983165]
[1735766535954,0.74,707.57,707.05,1.05983165]
[1735766536156,0.89056827,707.56,707.05,1.05983165]
[1735766536359,0.74,707.57,707.05,1.05983165]
[1735766537154,0.74,707.57,707.08,1.05983165]
[1735766538358,0.74,707.57,706.44,1.27179798]
[1735766538359,0.74,707.57,707.22,1.05983165]
[1735766539559,0.74,707.57,707.12,1.05983165]
[1735766540063,0.89026192,707.56,707.12,1.05983165]
[1735766540253,0.89026192,707.55,707.12,1.05983165]
[1735766540454,0.89026192,707.54,707.12,1.05983165]
[1735766540759,0.89026192,707.54,706.97,1.05983165]
[1735766540760,0.89023837,707.53,707.16,1.05983165]
[1735766540959,0.74,707.57,707.16,1.05983165]
[1735766541153,0.89028074,707.56,707.16,1.05983165]
[1735766541358,0.89028074,707.55,707.16,1.05983165]
[1735766541554,0.89028074,707.54,707.16,1.05983165]
[1735766541758,0.74,707.57,707.15,1.05983165]
[1735766541957,0.89027305,707.56,707.15,1.05983165]
[1735766542158,0.74,707.57,707.15,1.05983165]
[1735766542558,0.8903462,707.56,707.15,1.05983165]
[1735766542862,0.8903462,707.55,707.16,1.05983165]
[1735766543162,0.74,707.57,707.16,1.05983165]
[1735766543460,0.89031467,707.56,707.16,1.05983165]
[1735766543660,0.890317,707.55,707.16,1.05983165]
[1735766543854,0.74,707.57,707.15,1.05983165]
[1735766544059,0.89029485,707.56,707.15,1.05983165]
[1735766544259,0.89029485,707.55,707.15,1.05983165]
[1735766544455,0.89029485,707.54,707.15,1.05983165]
[1735766544656,0.74,707.57,707.13,1.05983165]
[1735766544861,0.89030533,707.56,707.13,1.05983165]
[1735766545061,0.74,707.57,707.13,1.05983165]
[1735766545260,0.89033783,707.56,707.13,1.05983165]
[1735766545453,0.74,707.57,707.13,1.05983165]
[1735766545660,0.89035529,707.56,707.15,1.05983165]
[1735766545955,0.74,707.57,707.15,1.05983165]
[1735766546160,0.8903504,707.56,707.15,1.05983165]
[1735766546355,0.74,707.57,707.15,1.05983165]
[1735766546556,0.89033573,707.56,707.15,1.05983165]
[1735766546761,0.89033573,707.55,707.15,1.05983165]
[1735766547059,0.74,707.57,707.15,1.05983165]
[1735766547260,0.89029836,707.56,707.15,1.05983165]
[1735766547463,0.89029836,707.55,707.15,1.05983165]
[1735766547662,0.74,707.57,707.15,1.05983165]
[1735766547964,0.74,707.57,707.14,1.05983165]
[1735766548162,0.89032923,707.56,707.14,1.05983165]